[Event "Live Chess"]
[Site "Chess.com"]
[Date "2011.02.01"]
[Round "-"]
[White "hipposcottimus"]
[Black "mattcrossette"]
[Result "1-0"]
[CurrentPosition "1k1r4/ppp4p/3b1Qp1/3P4/8/4q3/P5PP/3R1R1K b - -"]
[Timezone "UTC"]
[ECO "A04"]
[ECOUrl "https://www.chess.com/openings/Reti-Opening-Dutch-Lisitsyn-Gambit"]
[UTCDate "2011.02.01"]
[UTCTime "06:34:55"]
[WhiteElo "1794"]
[BlackElo "1777"]
[TimeControl "60"]
[Termination "hipposcottimus won on time"]
[StartTime "06:34:55"]
[EndDate "2011.02.01"]
[EndTime "06:36:43"]
[Link "https://www.chess.com/game/live/93549673"]

1. e4 {[%clk 0:01:00]} 1... f5 {[%clk 0:01:00]} 2. Nf3 {[%clk 0:00:59.7]} 2... fxe4 {[%clk 0:00:58.6]} 3. Ng5 {[%clk 0:00:59.4]} 3... Nf6 {[%clk 0:00:57.7]} 4. f3 {[%clk 0:00:58.7]} 4... exf3 {[%clk 0:00:56.6]} 5. Nxf3 {[%clk 0:00:58]} 5... d6 {[%clk 0:00:55.6]} 6. d4 {[%clk 0:00:57.6]} 6... Bg4 {[%clk 0:00:53.8]} 7. Nc3 {[%clk 0:00:56.7]} 7... Nc6 {[%clk 0:00:52.3]} 8. Be2 {[%clk 0:00:55.5]} 8... Qd7 {[%clk 0:00:47]} 9. O-O {[%clk 0:00:54]} 9... O-O-O {[%clk 0:00:45.3]} 10. Be3 {[%clk 0:00:52.9]} 10... e6 {[%clk 0:00:42.2]} 11. Bf2 {[%clk 0:00:52.4]} 11... Nd5 {[%clk 0:00:39.8]} 12. Nxd5 {[%clk 0:00:50.3]} 12... exd5 {[%clk 0:00:38.9]} 13. c4 {[%clk 0:00:49.3]} 13... dxc4 {[%clk 0:00:34.6]} 14. d5 {[%clk 0:00:48.8]} 14... Ne5 {[%clk 0:00:32.9]} 15. Nxe5 {[%clk 0:00:46.4]} 15... Bxe2 {[%clk 0:00:32]} 16. Qxe2 {[%clk 0:00:46]} 16... Qe7 {[%clk 0:00:27.4]} 17. Bg3 {[%clk 0:00:41.6]} 17... dxe5 {[%clk 0:00:25.6]} 18. Bxe5 {[%clk 0:00:40.8]} 18... g6 {[%clk 0:00:21.7]} 19. Qg4+ {[%clk 0:00:39.8]} 19... Kb8 {[%clk 0:00:17.6]} 20. Bf6 {[%clk 0:00:39.4]} 20... Qe3+ {[%clk 0:00:14.4]} 21. Kh1 {[%clk 0:00:35.8]} 21... Bd6 {[%clk 0:00:07.6]} 22. Bxd8 {[%clk 0:00:32.5]} 22... Rxd8 {[%clk 0:00:05.8]} 23. Rae1 {[%clk 0:00:32.1]} 23... Qc5 {[%clk 0:00:04.3]} 24. Qe6 {[%clk 0:00:30.9]} 24... c3 {[%clk 0:00:03.3]} 25. bxc3 {[%clk 0:00:29.3]} 25... Qxc3 {[%clk 0:00:02.4]} 26. Rc1 {[%clk 0:00:29.1]} 26... Qd2 {[%clk 0:00:01.4]} 27. Rcd1 {[%clk 0:00:28.3]} 27... Qe3 {[%clk 0:00:00.4]} 28. Qf6 {[%clk 0:00:25.8]} 1-0

[Event "Live Chess"]
[Site "Chess.com"]
[Date "2011.02.01"]
[Round "-"]
[White "hipposcottimus"]
[Black "makamshabbu17"]
[Result "1-0"]
[CurrentPosition "3R1k2/6pp/2p1B3/6B1/8/8/PP3PPP/6K1 b - -"]
[Timezone "UTC"]
[ECO "B07"]
[ECOUrl "https://www.chess.com/openings/Pirc-Defense-Maroczy-Defense-3.dxe5-dxe5-4.Qxd8-Kxd8"]
[UTCDate "2011.02.01"]
[UTCTime "06:33:21"]
[WhiteElo "1786"]
[BlackElo "1140"]
[TimeControl "60"]
[Termination "hipposcottimus won by checkmate"]
[StartTime "06:33:21"]
[EndDate "2011.02.01"]
[EndTime "06:34:47"]
[Link "https://www.chess.com/game/live/93549336"]

1. e4 {[%clk 0:01:00]} 1... d6 {[%clk 0:01:00]} 2. d4 {[%clk 0:00:58.1]} 2... e5 {[%clk 0:00:58.4]} 3. dxe5 {[%clk 0:00:57.8]} 3... dxe5 {[%clk 0:00:56.4]} 4. Qxd8+ {[%clk 0:00:57.5]} 4... Kxd8 {[%clk 0:00:55.5]} 5. Nf3 {[%clk 0:00:57.2]} 5... Be6 {[%clk 0:00:52.8]} 6. Nxe5 {[%clk 0:00:55.6]} 6... Nc6 {[%clk 0:00:48.3]} 7. Nxc6+ {[%clk 0:00:53.5]} 7... bxc6 {[%clk 0:00:46.8]} 8. c4 {[%clk 0:00:53.2]} 8... Bc5 {[%clk 0:00:43.2]} 9. Nc3 {[%clk 0:00:52.9]} 9... Rb8 {[%clk 0:00:41.8]} 10. Bd3 {[%clk 0:00:52.6]} 10... Bxc4 {[%clk 0:00:40.4]} 11. Bxc4 {[%clk 0:00:50.1]} 11... Nf6 {[%clk 0:00:37.7]} 12. O-O {[%clk 0:00:48.5]} 12... Nxe4 {[%clk 0:00:36.3]} 13. Nxe4 {[%clk 0:00:47.6]} 13... Ke8 {[%clk 0:00:34.1]} 14. Nxc5 {[%clk 0:00:46.5]} 14... a6 {[%clk 0:00:32.6]} 15. Nxa6 {[%clk 0:00:44.6]} 15... Rb6 {[%clk 0:00:29.7]} 16. Nxc7+ {[%clk 0:00:43.7]} 16... Kd7 {[%clk 0:00:26.7]} 17. Na6 {[%clk 0:00:43.1]} 17... Rxa6 {[%clk 0:00:24.4]} 18. Bxa6 {[%clk 0:00:42]} 18... Kc7 {[%clk 0:00:22.6]} 19. Bc4 {[%clk 0:00:41.7]} 19... Rd8 {[%clk 0:00:21.7]} 20. Bf4+ {[%clk 0:00:41.5]} 20... Kc8 {[%clk 0:00:19.2]} 21. Bxf7 {[%clk 0:00:41.1]} 21... Rd4 {[%clk 0:00:17.1]} 22. Be6+ {[%clk 0:00:40.5]} 22... Kd8 {[%clk 0:00:14.5]} 23. Bg5+ {[%clk 0:00:40.2]} 23... Ke8 {[%clk 0:00:11.8]} 24. Rad1 {[%clk 0:00:39.8]} 24... Rxd1 {[%clk 0:00:10.2]} 25. Rxd1 {[%clk 0:00:39.5]} 25... Kf8 {[%clk 0:00:07.9]} 26. Rd8# {[%clk 0:00:39.2]} 1-0

[Event "Live Chess"]
[Site "Chess.com"]
[Date "2011.02.01"]
[Round "-"]
[White "thejas"]
[Black "hipposcottimus"]
[Result "0-1"]
[CurrentPosition "8/P6p/5pp1/2Nk4/3P4/5P2/2K3PP/8 w - -"]
[Timezone "UTC"]
[ECO "A10"]
[ECOUrl "https://www.chess.com/openings/English-Opening-Jaenisch-Gambit"]
[UTCDate "2011.02.01"]
[UTCTime "06:30:46"]
[WhiteElo "1513"]
[BlackElo "1786"]
[TimeControl "60"]
[Termination "hipposcottimus won on time"]
[StartTime "06:30:46"]
[EndDate "2011.02.01"]
[EndTime "06:32:56"]
[Link "https://www.chess.com/game/live/93548880"]

1. c4 {[%clk 0:01:00]} 1... b5 {[%clk 0:01:00]} 2. Nc3 {[%clk 0:00:59.5]} 2... bxc4 {[%clk 0:00:58.9]} 3. e4 {[%clk 0:00:57.7]} 3... Ba6 {[%clk 0:00:58.3]} 4. Qa4 {[%clk 0:00:55.2]} 4... e5 {[%clk 0:00:50.5]} 5. Bxc4 {[%clk 0:00:53.9]} 5... Nf6 {[%clk 0:00:49.7]} 6. Nf3 {[%clk 0:00:52.8]} 6... Bxc4 {[%clk 0:00:47.5]} 7. Qxc4 {[%clk 0:00:51]} 7... c6 {[%clk 0:00:47.2]} 8. Nxe5 {[%clk 0:00:48.6]} 8... d5 {[%clk 0:00:44.3]} 9. exd5 {[%clk 0:00:46.6]} 9... cxd5 {[%clk 0:00:42.2]} 10. Qb5+ {[%clk 0:00:44.3]} 10... Nbd7 {[%clk 0:00:39.9]} 11. Nc6 {[%clk 0:00:37.3]} 11... Qb6 {[%clk 0:00:29.7]} 12. Qxb6 {[%clk 0:00:32.3]} 12... axb6 {[%clk 0:00:29.2]} 13. Nd4 {[%clk 0:00:28.5]} 13... Bc5 {[%clk 0:00:28.5]} 14. Ndb5 {[%clk 0:00:27.1]} 14... O-O {[%clk 0:00:26.9]} 15. Nc7 {[%clk 0:00:26.1]} 15... Rac8 {[%clk 0:00:25.2]} 16. N7xd5 {[%clk 0:00:25.3]} 16... Ng4 {[%clk 0:00:23.6]} 17. f3 {[%clk 0:00:22.4]} 17... Nf2 {[%clk 0:00:18.7]} 18. Rf1 {[%clk 0:00:19.4]} 18... Nd3+ {[%clk 0:00:18.3]} 19. Ke2 {[%clk 0:00:17.9]} 19... Nxc1+ {[%clk 0:00:17.5]} 20. Raxc1 {[%clk 0:00:17.2]} 20... Rfe8+ {[%clk 0:00:17]} 21. Kd1 {[%clk 0:00:15]} 21... b5 {[%clk 0:00:15.4]} 22. Re1 {[%clk 0:00:14]} 22... Bb6 {[%clk 0:00:14.2]} 23. Rxe8+ {[%clk 0:00:12.5]} 23... Rxe8 {[%clk 0:00:13.9]} 24. Nxb6 {[%clk 0:00:11.5]} 24... Nxb6 {[%clk 0:00:13.5]} 25. Nxb5 {[%clk 0:00:10.4]} 25... Rb8 {[%clk 0:00:12.8]} 26. Nd6 {[%clk 0:00:09.5]} 26... Na4 {[%clk 0:00:12.1]} 27. Rc8+ {[%clk 0:00:08.1]} 27... Rxc8 {[%clk 0:00:11.6]} 28. Nxc8 {[%clk 0:00:07.7]} 28... Nxb2+ {[%clk 0:00:11.3]} 29. Kc2 {[%clk 0:00:05.9]} 29... Na4 {[%clk 0:00:11]} 30. Nd6 {[%clk 0:00:04.5]} 30... Nc5 {[%clk 0:00:10.6]} 31. Ne4 {[%clk 0:00:03.8]} 31... g6 {[%clk 0:00:10.3]} 32. Nxc5 {[%clk 0:00:02.7]} 32... Kg7 {[%clk 0:00:10]} 33. d4 {[%clk 0:00:01.8]} 33... f6 {[%clk 0:00:09.8]} 34. a4 {[%clk 0:00:01.4]} 34... Kf7 {[%clk 0:00:09.5]} 35. a5 {[%clk 0:00:01.1]} 35... Ke7 {[%clk 0:00:09.2]} 36. a6 {[%clk 0:00:00.8]} 36... Kd6 {[%clk 0:00:09]} 37. a7 {[%clk 0:00:00.4]} 37... Kd5 {[%clk 0:00:08.3]} 0-1

[Event "Live Chess"]
[Site "Chess.com"]
[Date "2011.02.01"]
[Round "-"]
[White "hipposcottimus"]
[Black "thejas"]
[Result "1-0"]
[CurrentPosition "r2q1rk1/pp1n2Qp/2p2p1B/3pPP2/1b1P4/2N5/PP4PP/R4RK1 b - -"]
[Timezone "UTC"]
[ECO "B12"]
[ECOUrl "https://www.chess.com/openings/Caro-Kann-Defense-Advance-Variation-3...Bf5-4.c4-e6"]
[UTCDate "2011.02.01"]
[UTCTime "06:29:18"]
[WhiteElo "1783"]
[BlackElo "1516"]
[TimeControl "60"]
[Termination "hipposcottimus won by checkmate"]
[StartTime "06:29:18"]
[EndDate "2011.02.01"]
[EndTime "06:30:29"]
[Link "https://www.chess.com/game/live/93548613"]

1. e4 {[%clk 0:01:00]} 1... c6 {[%clk 0:01:00]} 2. d4 {[%clk 0:00:58.4]} 2... d5 {[%clk 0:00:59.7]} 3. e5 {[%clk 0:00:57.8]} 3... Bf5 {[%clk 0:00:58.7]} 4. c4 {[%clk 0:00:56.7]} 4... e6 {[%clk 0:00:58.2]} 5. f3 {[%clk 0:00:54.8]} 5... Ne7 {[%clk 0:00:57.2]} 6. Bd3 {[%clk 0:00:53.8]} 6... Bxd3 {[%clk 0:00:55]} 7. Qxd3 {[%clk 0:00:53.6]} 7... Nf5 {[%clk 0:00:54.3]} 8. Ne2 {[%clk 0:00:53.3]} 8... Be7 {[%clk 0:00:53]} 9. O-O {[%clk 0:00:52.9]} 9... O-O {[%clk 0:00:50.8]} 10. Nbc3 {[%clk 0:00:52]} 10... Bg5 {[%clk 0:00:49.8]} 11. f4 {[%clk 0:00:47.1]} 11... Be7 {[%clk 0:00:47.9]} 12. cxd5 {[%clk 0:00:46.2]} 12... exd5 {[%clk 0:00:45.9]} 13. Ng3 {[%clk 0:00:43.6]} 13... Nxg3 {[%clk 0:00:43.8]} 14. Qxg3 {[%clk 0:00:43.4]} 14... Bb4 {[%clk 0:00:42.6]} 15. f5 {[%clk 0:00:41.7]} 15... Nd7 {[%clk 0:00:40.4]} 16. Bh6 {[%clk 0:00:41]} 16... f6 {[%clk 0:00:20.7]} 17. Qxg7# {[%clk 0:00:37.1]} 1-0

[Event "Live Chess"]
[Site "Chess.com"]
[Date "2011.02.01"]
[Round "-"]
[White "thejas"]
[Black "hipposcottimus"]
[Result "0-1"]
[CurrentPosition "6k1/p4rp1/1p2b2p/4QpnP/8/2PP4/P2NPPP1/R3KBR1 w Q -"]
[Timezone "UTC"]
[ECO "A00"]
[ECOUrl "https://www.chess.com/openings/Mieses-Opening-Reversed-Rat-Variation"]
[UTCDate "2011.02.01"]
[UTCTime "06:27:10"]
[WhiteElo "1519"]
[BlackElo "1780"]
[TimeControl "60"]
[Termination "hipposcottimus won on time"]
[StartTime "06:27:10"]
[EndDate "2011.02.01"]
[EndTime "06:29:04"]
[Link "https://www.chess.com/game/live/93548171"]

1. d3 {[%clk 0:01:00]} 1... e5 {[%clk 0:01:00]} 2. c4 {[%clk 0:00:59.7]} 2... f5 {[%clk 0:00:57.5]} 3. Nc3 {[%clk 0:00:59.4]} 3... Nf6 {[%clk 0:00:55.7]} 4. Bg5 {[%clk 0:00:58.2]} 4... Bb4 {[%clk 0:00:54.8]} 5. Nf3 {[%clk 0:00:57.4]} 5... d5 {[%clk 0:00:52.1]} 6. cxd5 {[%clk 0:00:54.7]} 6... Qxd5 {[%clk 0:00:50.7]} 7. Nd2 {[%clk 0:00:46.1]} 7... Bxc3 {[%clk 0:00:48.9]} 8. bxc3 {[%clk 0:00:44.6]} 8... Nfd7 {[%clk 0:00:47]} 9. Rg1 {[%clk 0:00:37.1]} 9... Qa5 {[%clk 0:00:46.1]} 10. Qb3 {[%clk 0:00:34]} 10... Nc5 {[%clk 0:00:37.9]} 11. Qd5 {[%clk 0:00:25.7]} 11... Ne6 {[%clk 0:00:30.9]} 12. Qxa5 {[%clk 0:00:20.4]} 12... b6 {[%clk 0:00:30.2]} 13. Qxe5 {[%clk 0:00:15]} 13... Nc6 {[%clk 0:00:27.3]} 14. Qd5 {[%clk 0:00:11.4]} 14... Nxg5 {[%clk 0:00:26.1]} 15. Qxc6+ {[%clk 0:00:09.7]} 15... Bd7 {[%clk 0:00:24.4]} 16. Qxa8+ {[%clk 0:00:08.5]} 16... Kf7 {[%clk 0:00:24.1]} 17. Qd5+ {[%clk 0:00:07.6]} 17... Be6 {[%clk 0:00:22.7]} 18. Qc6 {[%clk 0:00:06]} 18... Re8 {[%clk 0:00:21.6]} 19. Qxc7+ {[%clk 0:00:05]} 19... Re7 {[%clk 0:00:21.3]} 20. Qe5 {[%clk 0:00:04.5]} 20... Kg8 {[%clk 0:00:19.5]} 21. h4 {[%clk 0:00:02.1]} 21... Rf7 {[%clk 0:00:19.2]} 22. h5 {[%clk 0:00:01.4]} 22... h6 {[%clk 0:00:15.7]} 0-1

[Event "Live Chess"]
[Site "Chess.com"]
[Date "2011.02.01"]
[Round "-"]
[White "Brock_Sampson"]
[Black "hipposcottimus"]
[Result "0-1"]
[CurrentPosition "5r1k/ppp3pp/3p1q2/4p3/8/1PP5/1P1Q3P/1K6 w - -"]
[Timezone "UTC"]
[ECO "C20"]
[ECOUrl "https://www.chess.com/openings/Kings-Pawn-Opening-Napoleon-Attack"]
[UTCDate "2011.02.01"]
[UTCTime "06:24:48"]
[WhiteElo "1507"]
[BlackElo "1777"]
[TimeControl "60"]
[Termination "hipposcottimus won on time"]
[StartTime "06:24:48"]
[EndDate "2011.02.01"]
[EndTime "06:26:53"]
[Link "https://www.chess.com/game/live/93547712"]

1. e4 {[%clk 0:01:00]} 1... e5 {[%clk 0:01:00]} 2. Qf3 {[%clk 0:00:59.8]} 2... Nc6 {[%clk 0:00:58.5]} 3. Nh3 {[%clk 0:00:59.7]} 3... Nd4 {[%clk 0:00:56.6]} 4. Qd1 {[%clk 0:00:56.9]} 4... Nf6 {[%clk 0:00:56.1]} 5. Bc4 {[%clk 0:00:55.9]} 5... Nxe4 {[%clk 0:00:54.5]} 6. f3 {[%clk 0:00:54]} 6... Nd6 {[%clk 0:00:50]} 7. Bd3 {[%clk 0:00:51.9]} 7... N6f5 {[%clk 0:00:47.3]} 8. Bxf5 {[%clk 0:00:49.6]} 8... Nxf5 {[%clk 0:00:46.1]} 9. g4 {[%clk 0:00:49.2]} 9... Nh4 {[%clk 0:00:43.3]} 10. d3 {[%clk 0:00:47.8]} 10... d6 {[%clk 0:00:40.4]} 11. Bg5 {[%clk 0:00:44.7]} 11... Be7 {[%clk 0:00:38.3]} 12. Bxe7 {[%clk 0:00:42.5]} 12... Qxe7 {[%clk 0:00:38]} 13. Nc3 {[%clk 0:00:40.1]} 13... O-O {[%clk 0:00:37.4]} 14. Qe2 {[%clk 0:00:39.2]} 14... Qd8 {[%clk 0:00:36.8]} 15. O-O-O {[%clk 0:00:38.1]} 15... f5 {[%clk 0:00:36.2]} 16. Nd5 {[%clk 0:00:37.3]} 16... fxg4 {[%clk 0:00:35.3]} 17. fxg4 {[%clk 0:00:36.5]} 17... Nf3 {[%clk 0:00:31.2]} 18. Rhf1 {[%clk 0:00:31.8]} 18... Nd4 {[%clk 0:00:30.5]} 19. Rxf8+ {[%clk 0:00:30.4]} 19... Qxf8 {[%clk 0:00:29.6]} 20. Qe1 {[%clk 0:00:29.1]} 20... Bxg4 {[%clk 0:00:28.6]} 21. Nf2 {[%clk 0:00:25.8]} 21... Bxd1 {[%clk 0:00:24.9]} 22. Qxd1 {[%clk 0:00:24.7]} 22... Qxf2 {[%clk 0:00:23.7]} 23. c3 {[%clk 0:00:22.8]} 23... Ne2+ {[%clk 0:00:17.4]} 24. Kd2 {[%clk 0:00:19]} 24... Rf8 {[%clk 0:00:16.8]} 25. Ne7+ {[%clk 0:00:16.7]} 25... Kh8 {[%clk 0:00:15]} 26. d4 {[%clk 0:00:12.5]} 26... Nxd4+ {[%clk 0:00:13.1]} 27. Kc1 {[%clk 0:00:09.8]} 27... Nb3+ {[%clk 0:00:12.7]} 28. Kb1 {[%clk 0:00:06.9]} 28... Qf6 {[%clk 0:00:12.1]} 29. axb3 {[%clk 0:00:02]} 29... Qxe7 {[%clk 0:00:10.9]} 30. Qd2 {[%clk 0:00:00.4]} 30... Qf6 {[%clk 0:00:10.2]} 0-1

[Event "Live Chess"]
[Site "Chess.com"]
[Date "2011.02.01"]
[Round "-"]
[White "hipposcottimus"]
[Black "MALVINASARGENTINAS"]
[Result "1-0"]
[CurrentPosition "rn1Qkq2/pN4pp/bpp2n2/8/2B1P3/N7/PPP2PPP/R1B1K2R b KQ -"]
[Timezone "UTC"]
[ECO "C41"]
[ECOUrl "https://www.chess.com/openings/Philidor-Defense-3.Bc4"]
[UTCDate "2011.02.01"]
[UTCTime "06:23:50"]
[WhiteElo "1774"]
[BlackElo "1248"]
[TimeControl "60"]
[Termination "hipposcottimus won by checkmate"]
[StartTime "06:23:50"]
[EndDate "2011.02.01"]
[EndTime "06:24:38"]
[Link "https://www.chess.com/game/live/93547504"]

1. e4 {[%clk 0:01:00]} 1... e5 {[%clk 0:01:00]} 2. Nf3 {[%clk 0:00:59.5]} 2... d6 {[%clk 0:00:59.5]} 3. Bc4 {[%clk 0:00:59.1]} 3... c6 {[%clk 0:00:59]} 4. d4 {[%clk 0:00:58.7]} 4... b6 {[%clk 0:00:58.6]} 5. dxe5 {[%clk 0:00:58]} 5... Ba6 {[%clk 0:00:58.2]} 6. Na3 {[%clk 0:00:54.5]} 6... dxe5 {[%clk 0:00:57.3]} 7. Nxe5 {[%clk 0:00:51.9]} 7... Bd6 {[%clk 0:00:55.6]} 8. Nxf7 {[%clk 0:00:49.1]} 8... Kd7 {[%clk 0:00:52.4]} 9. Nxh8 {[%clk 0:00:48.8]} 9... Nf6 {[%clk 0:00:50.4]} 10. Nf7 {[%clk 0:00:47.6]} 10... Qf8 {[%clk 0:00:48.3]} 11. Nxd6 {[%clk 0:00:43]} 11... Kd8 {[%clk 0:00:44.1]} 12. Nb7+ {[%clk 0:00:40.5]} 12... Ke8 {[%clk 0:00:40.9]} 13. Qd8# {[%clk 0:00:38.2]} 1-0

[Event "Live Chess"]
[Site "Chess.com"]
[Date "2011.02.01"]
[Round "-"]
[White "smpcorporation"]
[Black "hipposcottimus"]
[Result "0-1"]
[CurrentPosition "2b2rk1/1p1r2p1/1R6/2Pp1pP1/3P1Pq1/4p1N1/P4KB1/5Q2 w - -"]
[Timezone "UTC"]
[ECO "A00"]
[ECOUrl "https://www.chess.com/openings/Kings-Fianchetto-Opening-1...e5-2.Bg2-d5"]
[UTCDate "2011.02.01"]
[UTCTime "06:21:08"]
[WhiteElo "1474"]
[BlackElo "1773"]
[TimeControl "60"]
[Termination "hipposcottimus won on time"]
[StartTime "06:21:08"]
[EndDate "2011.02.01"]
[EndTime "06:22:59"]
[Link "https://www.chess.com/game/live/93546983"]

1. g3 {[%clk 0:01:00]} 1... e5 {[%clk 0:01:00]} 2. Bg2 {[%clk 0:00:59.6]} 2... d5 {[%clk 0:00:59.7]} 3. b3 {[%clk 0:00:57.2]} 3... c5 {[%clk 0:00:59.3]} 4. Bb2 {[%clk 0:00:56.8]} 4... e4 {[%clk 0:00:58.6]} 5. c3 {[%clk 0:00:54.7]} 5... f6 {[%clk 0:00:58.1]} 6. e3 {[%clk 0:00:54]} 6... Nc6 {[%clk 0:00:56.1]} 7. Ne2 {[%clk 0:00:53.7]} 7... Bd6 {[%clk 0:00:55.5]} 8. O-O {[%clk 0:00:53.1]} 8... Nge7 {[%clk 0:00:54.9]} 9. f4 {[%clk 0:00:51.6]} 9... Bc7 {[%clk 0:00:54.2]} 10. Ba3 {[%clk 0:00:45.3]} 10... f5 {[%clk 0:00:53.9]} 11. Bxc5 {[%clk 0:00:43.6]} 11... O-O {[%clk 0:00:53.6]} 12. Bxe7 {[%clk 0:00:42.6]} 12... Qxe7 {[%clk 0:00:53.3]} 13. d3 {[%clk 0:00:41.3]} 13... Be6 {[%clk 0:00:51.1]} 14. d4 {[%clk 0:00:39.6]} 14... Nd8 {[%clk 0:00:49.2]} 15. Nd2 {[%clk 0:00:38.3]} 15... Nf7 {[%clk 0:00:48.8]} 16. Nb1 {[%clk 0:00:33]} 16... Nh6 {[%clk 0:00:48.5]} 17. Nd2 {[%clk 0:00:30.6]} 17... Ng4 {[%clk 0:00:47.9]} 18. h3 {[%clk 0:00:28.5]} 18... Nxe3 {[%clk 0:00:46.8]} 19. Qe1 {[%clk 0:00:26.6]} 19... Nxf1 {[%clk 0:00:46.3]} 20. Qxf1 {[%clk 0:00:26.1]} 20... Bb6 {[%clk 0:00:44.7]} 21. b4 {[%clk 0:00:22]} 21... Rac8 {[%clk 0:00:44.4]} 22. Nb3 {[%clk 0:00:19.8]} 22... a5 {[%clk 0:00:42.4]} 23. Nc5 {[%clk 0:00:18.6]} 23... axb4 {[%clk 0:00:38.9]} 24. cxb4 {[%clk 0:00:14.2]} 24... Bxc5 {[%clk 0:00:36.9]} 25. bxc5 {[%clk 0:00:13.1]} 25... Rcd8 {[%clk 0:00:34.7]} 26. Rb1 {[%clk 0:00:12.7]} 26... Bc8 {[%clk 0:00:33.2]} 27. Rb6 {[%clk 0:00:10.8]} 27... Rd7 {[%clk 0:00:31]} 28. g4 {[%clk 0:00:05.7]} 28... Qf7 {[%clk 0:00:30.2]} 29. g5 {[%clk 0:00:04.7]} 29... h6 {[%clk 0:00:28.7]} 30. h4 {[%clk 0:00:03.2]} 30... hxg5 {[%clk 0:00:27.7]} 31. hxg5 {[%clk 0:00:02.4]} 31... Qh5 {[%clk 0:00:27.1]} 32. Ng3 {[%clk 0:00:02]} 32... Qg4 {[%clk 0:00:26.3]} 33. Kf2 {[%clk 0:00:01.2]} 33... e3+ {[%clk 0:00:24.8]} 0-1

[Event "Live Chess"]
[Site "Chess.com"]
[Date "2011.02.01"]
[Round "-"]
[White "hipposcottimus"]
[Black "Nugget777"]
[Result "1-0"]
[CurrentPosition "r2qk2r/p2pnQ2/6p1/2P1P1bp/8/8/4B2P/R4R1K b kq -"]
[Timezone "UTC"]
[ECO "C00"]
[ECOUrl "https://www.chess.com/openings/French-Defense-Knight-Variation"]
[UTCDate "2011.02.01"]
[UTCTime "06:19:03"]
[WhiteElo "1771"]
[BlackElo "1679"]
[TimeControl "60"]
[Termination "hipposcottimus won by checkmate"]
[StartTime "06:19:03"]
[EndDate "2011.02.01"]
[EndTime "06:20:50"]
[Link "https://www.chess.com/game/live/93546583"]

1. e4 {[%clk 0:01:00]} 1... e6 {[%clk 0:01:00]} 2. Nf3 {[%clk 0:00:59.5]} 2... Be7 {[%clk 0:00:59.7]} 3. d4 {[%clk 0:00:58.7]} 3... c6 {[%clk 0:00:59.4]} 4. e5 {[%clk 0:00:57.3]} 4... Bb4+ {[%clk 0:00:59]} 5. c3 {[%clk 0:00:56.5]} 5... Be7 {[%clk 0:00:58.4]} 6. c4 {[%clk 0:00:55.6]} 6... b5 {[%clk 0:00:58.1]} 7. c5 {[%clk 0:00:54.3]} 7... Qa5+ {[%clk 0:00:55.7]} 8. b4 {[%clk 0:00:53.7]} 8... Qxb4+ {[%clk 0:00:53.9]} 9. Bd2 {[%clk 0:00:53.4]} 9... Qa4 {[%clk 0:00:52.1]} 10. Nc3 {[%clk 0:00:52.4]} 10... Qa6 {[%clk 0:00:50.4]} 11. Be2 {[%clk 0:00:51.3]} 11... Bb7 {[%clk 0:00:48.8]} 12. O-O {[%clk 0:00:50.8]} 12... f6 {[%clk 0:00:46.6]} 13. Bg5 {[%clk 0:00:50.6]} 13... fxg5 {[%clk 0:00:45.3]} 14. Qd2 {[%clk 0:00:48]} 14... g6 {[%clk 0:00:43.8]} 15. a4 {[%clk 0:00:47.6]} 15... Qa5 {[%clk 0:00:39]} 16. axb5 {[%clk 0:00:46.9]} 16... Qd8 {[%clk 0:00:38.6]} 17. bxc6 {[%clk 0:00:46]} 17... Bxc6 {[%clk 0:00:37.2]} 18. Na4 {[%clk 0:00:41]} 18... h5 {[%clk 0:00:35]} 19. Nc3 {[%clk 0:00:38]} 19... g4 {[%clk 0:00:32.7]} 20. Ne1 {[%clk 0:00:33.8]} 20... Bg5 {[%clk 0:00:32.2]} 21. f4 {[%clk 0:00:32.4]} 21... gxf3 {[%clk 0:00:29.9]} 22. Qa2 {[%clk 0:00:22.2]} 22... fxg2 {[%clk 0:00:26.4]} 23. Nxg2 {[%clk 0:00:19.7]} 23... Bxg2 {[%clk 0:00:23.7]} 24. Kxg2 {[%clk 0:00:18.6]} 24... Nc6 {[%clk 0:00:21.6]} 25. Kh1 {[%clk 0:00:18.2]} 25... Nge7 {[%clk 0:00:19.3]} 26. d5 {[%clk 0:00:17.3]} 26... exd5 {[%clk 0:00:18.1]} 27. Nxd5 {[%clk 0:00:16.7]} 27... Nxd5 {[%clk 0:00:16.8]} 28. Qxd5 {[%clk 0:00:16.4]} 28... Ne7 {[%clk 0:00:12.8]} 29. Qf7# {[%clk 0:00:15.1]} 1-0